Cogmind - Beta 15 @@@ ROGUE MODE // 2025.10.02 @ 21:43:57 Player: Reflectatory Result: Destroyed by D-53 Grenadier with Mini Grenade Launcher Performance ------------- Evolutions (0) 0 Regions Visited (4) 800 Robots Destroyed (3) 15 Value Destroyed (102) 102 Prototype IDs (23) 460 Alien Tech Used (0) 0 Bonus (300) 300 TOTAL SCORE: 1677 Bonus ------- Aligned with FarCom 300 Cogmind --------- Core Integrity 0/250 Matter 253/300 Energy 250/250 System Corruption 0% Temperature Cool (0) Movement Walking (90) Location -9/Mines Parts ------- > --- POWER (1) -------- Ion Engine > --- PROPULSION (2) --- Potential Leg Potential Leg > --- UTILITY (2) ------ Small Storage Unit > --- WEAPON (2) ------- Light Assault Rifle Light Assault Rifle > --- INVENTORY (8) ---- Scrap Suit Experimental Sensor Array Signal Interpreter Medium Laser Light Assault Rifle Mining Laser Peak State ------------ > --- POWER ------------ Ion Engine > --- PROPULSION ------- Potential Leg Potential Leg > --- UTILITY ---------- Small Storage Unit Light Armor Plating > --- WEAPON ----------- Medium Laser Light Assault Rifle > --- INVENTORY -------- Scrap Suit Experimental Sensor Array Signal Interpreter Light Assault Rifle Light Assault Rifle Grenade Launcher Mining Laser [Rating: 27] Favorites ----------- Power Ion Engine Engine Ion Engine Propulsion Wheel Leg Potential Leg Wheel Wheel Utility Small Storage Unit Storage Small Storage Unit Protection Light Armor Plating Weapon Light Assault Rifle Energy Gun Medium Laser Ballistic Gun Light Assault Rifle Launcher Grenade Launcher Build | -11 -10 -10 -10 -9 ------- Run | Yrd Mat Min Exi Min Slots Evolved . | . . . . . Power . | . . . . . Propulsion . | . . . . . Utility . | . . . . . Weapon . | . . . . . Parts Attached 12 | 6 2 . 2 2 Power 2 | 1 1 . . . Engine 2 | 1 1 . . . Core . | . . . . . Reactor . | . . . . . Propulsion 4 | 2 . . 2 . Treads . | . . . . . Leg 2 | . . . 2 . Wheel 2 | 2 . . . . Hover . | . . . . . Flight . | . . . . . Utility 2 | 1 1 . . . Device . | . . . . . Storage 1 | 1 . . . . Processor . | . . . . . Hackware . | . . . . . Protection 1 | . 1 . . . Artifact . | . . . . . Weapon 4 | 2 . . . 2 Energy Gun 1 | 1 . . . . Energy Cannon . | . . . . . Ballistic Gun 2 | 1 . . . 1 Ballistic Cannon . | . . . . . Launcher 1 | . . . . 1 Special Weapon . | . . . . . Impact Weapon . | . . . . . Slashing Weapon . | . . . . . Piercing Weapon . | . . . . . Special Melee Weapon . | . . . . . Unidentified Prototypes . | . . . . . Parts Lost 2 | . . . . 2 Power . | . . . . . Propulsion . | . . . . . Utility 1 | . . . . 1 Weapon 1 | . . . . 1 Highest Loss Streak 2 | . . . . 2 To Critical Strikes . | . . . . . Average Backups 7 | 1 7 8 8 7 Power . | . 1 1 . . Propulsion 1 | . 2 1 1 . Utility 1 | . . 1 2 2 Weapon 3 | . 3 3 4 4 Tool/Special . | . . . . . Unused Backups 10 | . 1 1 2 6 Power 1 | . . . 1 . Propulsion 2 | . . 1 1 . Utility 3 | . . . . 3 Weapon 4 | . 1 . . 3 Tool/Special . | . . . . . Average Slot Usage (%) 99 | . 96 100 100 99 Engine 14 | . 14 14 14 14 Leg 12 | . . . 11 28 Wheel 15 | . 28 28 16 . Storage 14 | . 14 14 14 14 Protection 13 | . 10 14 14 13 Energy Gun 13 | . 14 14 14 13 Ballistic Gun 14 | . 14 14 14 14 Peak Build Rating 27 | 6 7 8 26 27 Average Rating 15 | 4 6 7 15 26 On Entrance 9 | . 6 7 8 26 Naked Turns . | . . . . . Heaviest Build 16 | 11 16 16 16 16 Greatest Support 60 | 20 20 20 60 60 Greatest Overweight (x) . | . . . . . Average Overweight (x) . | . . . . . Largest Inventory Capacity 8 | 8 8 8 8 8 Average Capacity 7 | 7 8 8 8 8 Most Carried 8 | 4 8 8 8 8 Average Carried 7 | 1 7 7 7 7 Final Capacity 8 | 8 8 8 8 8 Final Carried 8 | 4 8 8 8 7 Class Distribution -------------------- 100% | Mutant Dominant Class ---------------- Mutant | -10/Materials Mutant | -10/Mines Mutant | -10/Exiles Mutant | -9/Mines Resources | -11 -10 -10 -10 -9 ----------- Run | Yrd Mat Min Exi Min Matter Collected 289 | 239 50 . . . Remotely . | . . . . . Salvage Created 123 | . 123 . . . Parts 6 | . 6 . . . Haulers Intercepted . | . . . . . Recyclers Shooed 1 | . 1 . . . Parts Field Recycled . | . . . . . Retrieved Matter . | . . . . . Parts Self-Destructed . | . . . . . Prevented . | . . . . . Kills | -11 -10 -10 -10 -9 ------- Run | Yrd Mat Min Exi Min Combat Hostiles Destroyed 3 | . 3 . . . Guns 3 | . 3 . . . Classes Destroyed 1 | . 1 . . . Grunt 3 | . 3 . . . Best Kill Streak 2 | . 2 . . . Combat Bots Only 2 | . 2 . . . Max Kills in Single Turn 1 | . 1 . . . Gunslinging . | . . . . . Exploded . | . . . . . Melee . | . . . . . Uniques/NPCs Destroyed . | . . . . . Combat | -11 -10 -10 -10 -9 -------- Run | Yrd Mat Min Exi Min Hostile Shots Fired 33 | . 14 . 4 15 Missed 6 | . 3 . 1 2 Hits 27 | . 11 . 3 13 Projectile 27 | . 11 . 3 13 AOE 14 | . . . . 14 Damage Taken 772 | . 152 . 39 581 Core 262 | . 56 . 16 190 Absorbed by Shields . | . . . . . Core Remaining (%) 100 | 100 . . . . Volleys Fired 14 | . 9 . . 5 Largest 2 | . 2 . . 2 Hottest 70 | . 70 . . 70 Shots Fired 28 | . 18 . . 10 Gun 27 | . 18 . . 9 Cannon . | . . . . . Launcher 1 | . . . . 1 Special . | . . . . . Kinetic 16 | . 9 . . 7 Thermal 11 | . 9 . . 2 Explosive 1 | . . . . 1 Electromagnetic . | . . . . . Robot Hit Streak 9 | . 9 . . 2 Robot Miss Streak 2 | . 2 . . 1 Penetration Max . | . . . . . Secondary Targets . | . . . . . Shots Hit Robots 19 | . 14 . . 5 Core Hits 13 | . 7 . . 6 Critical Kills . | . . . . . Critical Parts Destroyed . | . . . . . Critical Strikes . | . . . . . Melee Attacks . | . . . . . Impact . | . . . . . Slashing . | . . . . . Piercing . | . . . . . Sneak Attacks . | . . . . . Combat Hostiles . | . . . . . Follow-up Attacks . | . . . . . Damage Inflicted 203 | . 143 . . 60 Guns 185 | . 143 . . 42 Cannons . | . . . . . Explosions 18 | . . . . 18 Melee . | . . . . . Ramming . | . . . . . Kinetic 86 | . 56 . . 30 Thermal 99 | . 87 . . 12 Explosive 18 | . . . . 18 Electromagnetic . | . . . . . Impact . | . . . . . Slashing . | . . . . . Piercing . | . . . . . Highest Corruption . | . . . . . Average Corruption . | . . . . . Corruption Purged . | . . . . . Corruption Blocked . | . . . . . Overload Shots . | . . . . . Overflow Damage . | . . . . . Projectiles . | . . . . . Explosions . | . . . . . Melee . | . . . . . Knockbacks . | . . . . . Impact . | . . . . . Kinetic . | . . . . . Secondary . | . . . . . Self-Inflicted Damage . | . . . . . Shots . | . . . . . Rammed . | . . . . . Targets Rammed . | . . . . . Kicked . | . . . . . Crushed . | . . . . . Highest Temperature 186 | . 186 . . 55 Average Temperature 67 | . 77 . . 31 Received Heat Transfer 66 | . 66 . . . Siege Activations . | . . . . . Martial Activations . | . . . . . Shielding Activations . | . . . . . Robots Disrupted . | . . . . . Combat Hostiles . | . . . . . Robots Corrupted . | . . . . . Combat Hostiles . | . . . . . Parts Fried . | . . . . . Impact Corruptions . | . . . . . Robots Melted . | . . . . . Combat Hostiles . | . . . . . Parts Melted . | . . . . . Heat Transferred 296 | . 259 . . 37 Parts Sabotaged . | . . . . . Parts Stolen . | . . . . . Parts Stripped . | . . . . . Power Chain Reactions . | . . . . . Alert | -11 -10 -10 -10 -9 ------- Run | Yrd Mat Min Exi Min Maximum Alert Level . | . . . . . Low Security (%) 100 | 100 100 100 . 100 Level 1 . | . . . . . Level 2 . | . . . . . Level 3 . | . . . . . Level 4 . | . . . . . Level 5 . | . . . . . High Security . | . . . . . Max Security . | . . . . . Peak Influence 94 | . 94 30 . 2 Initial 30 | . . 30 . . Average 14 | . 45 8 . . Influence Increases 151 | . 149 . . 2 Destroy 0b10 Robot/C 60 | . 60 . . . Destroy Leader 10 | . 10 . . . Successful Hack 19 | . 19 . . . Select Force Hacks 30 | . 30 . . . Destroy Structure 2 | . . . . 2 Lose Combat Pursuer 30 | . 30 . . . Influence Decreases 151 | . 70 79 . 2 Entered New Map 49 | . . 49 . . Time Decay 100 | . 70 30 . . Lost Part 2 | . . . . 2 Squads Dispatched 3 | . 3 . . . Investigation 1 | . 1 . . . Extermination . | . . . . . Reinforcement 2 | . 2 . . . Assault . | . . . . . Garrison . | . . . . . Intercept . | . . . . . Searches Triggered . | . . . . . Construction Impeded . | . . . . . Haulers Reinforced . | . . . . . Active Scanning Responses . | . . . . . Cargo Convoy Interrupts . | . . . . . Stealth | -11 -10 -10 -10 -9 --------- Run | Yrd Mat Min Exi Min Distress Signals 1 | . 1 . . . Communications Jammed . | . . . . . Distress Signals . | . . . . . Times Spotted 14 | . 11 . 1 2 Peak Tracking Total 7 | . 7 . 1 2 Tactical Retreats 1 | . 1 . . . Traps | -11 -10 -10 -10 -9 ------- Run | Yrd Mat Min Exi Min Traps Triggered 1 | . 1 . . . Indirectly . | . . . . . Trap Hack Attempts . | . . . . . Triggered . | . . . . . Disarmed . | . . . . . Reprogrammed . | . . . . . Reused . | . . . . . Traps Extracted . | . . . . . Installed . | . . . . . Triggered . | . . . . . Machines | -11 -10 -10 -10 -9 ---------- Run | Yrd Mat Min Exi Min Machines Disabled . | . . . . . Max in Single Turn . | . . . . . Machines Repaired . | . . . . . Machines Dismantled . | . . . . . Machines Sabotaged . | . . . . . Overloaded Fab Kills . | . . . . . Hacking | -11 -10 -10 -10 -9 --------- Run | Yrd Mat Min Exi Min Machines Accessed 9 | . 4 . 5 . Terminals 3 | . 3 . . . Fabricators . | . . . . . Repair Stations . | . . . . . Recycling Units 1 | . 1 . . . Scanalyzers . | . . . . . Garrison Access . | . . . . . Total Hacks 59 | . 9 . 50 . Successful 53 | . 3 . 50 . Failed 6 | . 6 . . . Catastrophic 4 | . 4 . . . Database Lockouts . | . . . . . Manual 10 | . 9 . 1 . Terminals 8 | . 8 . . . Fabricators . | . . . . . Repair Stations . | . . . . . Recycling Units 1 | . 1 . . . Scanalyzers . | . . . . . Garrison Access . | . . . . . Terminal Hacks 50 | . . . 50 . Record 49 | . . . 49 . Proto ID Catalog 1 | . . . 1 . Fabricator Hacks . | . . . . . Repair Station Hacks . | . . . . . Recycling Unit Hacks . | . . . . . Scanalyzer . | . . . . . Garrison Access Hacks . | . . . . . Unauthorized Hacks 3 | . 3 . . . Terminals 2 | . 2 . . . Botnet 2 | . 2 . . . Fabricators . | . . . . . Repair Stations . | . . . . . Recycling Units 1 | . 1 . . . Tunnel 1 | . 1 . . . Scanalyzers . | . . . . . Garrison Access . | . . . . . Data Cores Recovered . | . . . . . Used . | . . . . . Hacking Detections 3 | . 3 . . . Full Trace Events . | . . . . . Feedback Events . | . . . . . Feedback Blocked . | . . . . . Robot Schematics Acquired . | . . . . . Robots Built . | . . . . . Authchips . | . . . . . Time . | . . . . . Total Robot Build Rating . | . . . . . Part Schematics Acquired . | . . . . . Parts Built . | . . . . . Authchips . | . . . . . Time . | . . . . . Total Part Build Rating . | . . . . . Parts Repaired . | . . . . . Time . | . . . . . Parts Recycled . | . . . . . Recycled Matter . | . . . . . Retrieved Matter . | . . . . . Retrieved Components . | . . . . . Parts Scanalyzed . | . . . . . Part Schematics Acquired . | . . . . . Parts Damaged . | . . . . . Bothacking | -11 -10 -10 -10 -9 ------------ Run | Yrd Mat Min Exi Min Used RIF Installer . | . . . . . Robots Hacked . | . . . . . Non-combat . | . . . . . Combat . | . . . . . Robot Hacks Applied . | . . . . . Relay Couplers Released . | . . . . . Fabnet Peak Effective % . | . . . . . Robots Rewired . | . . . . . Allies Hacked . | . . . . . Hacks Repelled . | . . . . . Allies | -11 -10 -10 -10 -9 -------- Run | Yrd Mat Min Exi Min Total Allies 1 | . . 1 . . Largest Group 1 | . . 1 1 . Highest-Rated Group 31 | . . 31 31 . Highest-Rated Ally 31 | . . 31 31 . Total Orders . | . . . . . Ally Attacks . | . . . . . Total Damage . | . . . . . Kills . | . . . . . Allies Corrupted . | . . . . . Allies Melted . | . . . . . Intel | -11 -10 -10 -10 -9 ------- Run | Yrd Mat Min Exi Min Active Infowar (turns) . | . . . . . Robot Analysis Total . | . . . . . Derelict Logs Recovered . | . . . . . Drone Launches . | . . . . . Drone Recoveries . | . . . . . Exploration | -11 -10 -10 -10 -9 ------------- Run | Yrd Mat Min Exi Min Turns Passed 1169 | 46 175 131 517 300 Spaces Moved 1240 | 43 173 95 613 316 Core 8 | 8 . . . . Treads . | . . . . . Legs 545 | . . . 229 316 Wheels 687 | 35 173 95 384 . Hover . | . . . . . Flight . | . . . . . Fastest Speed 45 | 50 80 80 45 45 Average Speed 83 | 74 80 80 83 88 Slowest Speed 90 | 80 80 80 90 90 Overloaded Moves 18 | . . . 9 9 Propulsion Burnouts . | . . . . . Robots Hopped . | . . . . . Potential Cave-ins . | . . . . . Cave-ins Triggered . | . . . . . Exploration Rate (%) 41 | 3 37 22 92 51 Regions Visited 4 Branch Regions 3 Pre-discovered Areas 2 | . 1 . 1 . Known Exits Taken . | . . . . . Unknown Exits Taken 4 | 1 1 1 1 . Scrap Searched . | . . . . . Spaces Dug . | . . . . . Terrain Destroyed 2 | . . . . 2 Melee . | . . . . . Projectile . | . . . . . AOE 2 | . . . . 2 Terrain Rammed . | . . . . . Walls Destroyed . | . . . . . Machines Disabled . | . . . . . Actions | -11 -10 -10 -10 -9 --------- Run | Yrd Mat Min Exi Min Total 1345 | 54 192 150 621 328 Wait 56 | . 4 52 . . Move 1236 | 42 172 94 612 316 Hop . | . . . . . Pick Up 13 | 5 4 2 . 2 Fast Attach 9 | 6 1 . 2 . Attach 1 | . . . . 1 Detach 2 | . . . 2 . Swap 2 | . 1 . . 1 Drop 9 | 1 1 2 2 3 Fire 14 | . 9 . . 5 Melee . | . . . . . Ram . | . . . . . Kick . | . . . . . Crush . | . . . . . Escape Stasis . | . . . . . Rewire 3 | . . . 3 . Trap . | . . . . . Miscellaneous . | . . . . . Route ------- -11/Scrapyard -10/Materials -10/Mines -10/Exiles (discovered 2 exits: [*Min x2]) -9/Mines (discovered 1 exit: [*Mat]) History --------- Turn | Location | Event 7 | -11/Scrapyard | Discovered new exit (range 16) 47 | -11/Scrapyard | Entered Materials 196 | -10/Materials | Discovered new exit (range 11) 222 | -10/Materials | Entered Mines 228 | -10/Mines | Received a Mining Laser from a helpful Derelict 307 | -10/Mines | Build established: Mutant 316 | -10/Mines | Found a damaged Exp. Sensor Array with a note attached 318 | -10/Mines | Found Prototype Device 342 | -10/Mines | Deemed a non-threat by the Exiles lab entrance 343 | -10/Mines | Discovered new exit (range 5) 353 | -10/Mines | Entered Exiles 353 | -10/Exiles | Accompanied by 1 ally 367 | -10/Exiles | Discovered new exit (range 15) 377 | -10/Exiles | Met 8R-AWN 394 | -10/Exiles | Met EX-HEX 450 | -10/Exiles | Met EX-DEC 518 | -10/Exiles | Learned location of Zion (-6) 549 | -10/Exiles | Discovered new exit (range 14) 610 | -10/Exiles | Met EX-BIN 624 | -10/Exiles | Aligned with FarCom system 625 | -10/Exiles | Given EX-Vault access code 658 | -10/Exiles | Opened EX-Vault 666 | -10/Exiles | Found Potential Leg 668 | -10/Exiles | Found Potential Leg 687 | -10/Exiles | Warned to stay clear of 0b10 Research branches 699 | -10/Exiles | Exiles lab attacked by MAIN.C 870 | -10/Exiles | Left Exiles lab with Potential Leg 870 | -10/Exiles | Entered Mines 886 | -9/Mines | YI-UF0 nonchalantly dropped a Grenade Launcher on the ground 888 | -9/Mines | Met a Derelict bent on vengeance 987 | -9/Mines | Discovered new exit (range 5) 1076 | -9/Mines | Found a Scrap Suit stashed away for nefarious purposes 1079 | -9/Mines | Found Scrap Suit 1093 | -9/Mines | Assembled infested the area 1167 | -9/Mines | Core integrity fell below 50% 1170 | -9/Mines | Destroyed by D-53 Grenadier with Mini Grenade Launcher Last Messages --------------- A message is left with an item here: "H4-X0R! I managed to smuggle one out! Take this to the hideout, the fools near Old Recycling think they can use this tech to beat 0b10 one day, and now we just have to find a way to safely deliver this to MAIN.C to get on their good side and convince them to let us into the system." Dropped Wheel. Dropped Grenade Launcher. Acquired Scrap Suit. ALERT: Infestation in the mines, dispatching Demolisher response squad. C-30 ARC bursts open, deploying its payload. D-53 Grenadier unfolds itself. AM-PHS destroyed. The unstable cave ceiling collapses. Grenade Launcher destroyed. Lgt. Armor Plating destroyed. The unstable cave ceiling collapses. Map ----- +----------------------------------------------------+ | ???????????????????????????????????????????? ? | | ?????????????????????????#?????????????????? ? | | ????????????????????????? ?????????????????? " | | ????????????????????????? ??????????????????# " | | ????????????????????????? ??????????????????# " | | ???????????######???????? ????????????????### | | ??????????## ??????## ???????????????## | | ?????????## ???????# ???????????????# | | ?????????# #???????# #????????????????# | | ?????????# """ ##??????# #########?????????# | | ????????## """ ##?????# # ??????????# | | ???????## """ ##????# # """" ""??????????# | | ???????# ###### # """" """?????##### | | ???????# ## """" """" ## | | ???????# #?## #### ### ## #### | | ???????## ???####??# #?############???# ##### | | ????????##??????????# #??????#######???# | | ???????????????????## #?????## ##??###### | | ???????????????????# #?????# ##??????# | | ??????????????????## ##??### ##?????# | | ??????????????##### ### ##????# | | ?????????????## #????# | | ?????????????# #???## | | ?????????????# d % ##???# | | ?????????????# # d # ##????# | | ?????????????# ## @ # ###?????# # | | ?????????????# ## # # #???????##? | | ??????###????##### ???# #######???? | | ?????## ##???????## # ###??# #???? | | ?????# ##???????## ##?############# #???? | | ?????# ###??????## ##?## ##?????# ####? | | ?????## ##??????#### ### ####### #? | | ??????# ##????????## #### #? | | ??????# < #????????## #### #??# ## | | ??????## #???????## ### #??# #??# | | ???????# ##???????# ##?# #??# #??#### | | ???????# ############# ####??# #### #??#### | | ???????# ##?????# #?## | | ???????# #??????# ### | | ???????################# ##?????????# | | ???????????????????????# ###???????# ## | | ???????????????????????# ##??????## ####### | | ???????????????????????# ####????# #?????? | | ???????????????????????# ###### #?????? | | ???????????????????????## #?????? | | ????????????????????????##### #######?????? | | ????????????????????????????## #???????????? | | ?????????????????????????????# #???????????? | | ?????????????????????????????# ##???????????? | | ?????????????????????????????#####????????????? | +----------------------------------------------------+ Best States ------------- Heat Dissipation 25 Energy Generation 10 Energy Capacity 250 Matter Stores 300 Matter Capacity 300 Sight Range 16 Terrain Scan Density 10 Armor Coverage 150 Evasion (%) 57 Item Schematics ----------------- None Robot Schematics ------------------ None Fabricated ------------ Nothing Repaired ---------- Nothing Alien Tech Used ----------------- None Achievements -------------- None Challenges ------------ None Game ------ Seed ReflexSeismicBotcube Manual? 0 Play Time 00:16:25 Cumulative 39.8 hours Start 2025.10.02 @ 21:30:06 End 2025.10.02 @ 21:43:57 Sessions 1 Manual Loads 0 Difficulty Rogue Special Mode None Game No. 42 Rogue 42 Adventurer 0 Explorer 0 Win Type - Total 1 Types 1/0/0/0/0/0/0/0/0/0 Lore% 39 Gallery% 39 Achievement% 39 Wizard Run 0 Options --------- Layout 1 ASCII 0 Keyboard 0 Movement Numpad Keybinds 0 Fullscreen 1 Font 32/SmallcapsGlow Map View 50x35 Zoom Use 0% Tactical HUD 0 Map Filters NONE Filters NONE Steam 1 RUN: d25aaad5-cead-463c-a9e4-04e0fbb97ee0